bitfinex/quotes_SOLUSD_20250212
["timestamp","ask_amount","ask_price","bid_price","bid_amount"]
[1739372886161,20.25098,192.39,192.29,20.0]
[1739372886461,20.12549,192.39,192.29,20.0]
[1739372886683,0.12549,192.33,192.25,69.88311452]
[1739372886889,20.0,192.34,192.25,69.88311452]
[1739372887060,46.24683357,192.35,192.28,46.24683357]
[1739372887251,46.24683357,192.37,192.3,46.24683357]
[1739372887451,46.24683357,192.36,192.29,46.24683357]
[1739372887847,0.70829,192.38,192.31,46.24683357]
[1739372887848,0.5828,192.38,192.31,46.24683357]
[1739372888076,0.063,192.38,192.32,1.09162223]
[1739372888292,0.063,192.38,192.34,46.24683357]
[1739372888448,0.063,192.38,192.37,46.24683357]
[1739372888653,0.063,192.38,192.34,46.24683357]
[1739372889184,0.063,192.38,192.35,46.24683357]
[1739372889477,0.063,192.38,192.37,46.24683357]
[1739372889865,0.063,192.38,192.32,51.44623357]
[1739372890062,46.24683357,192.36,192.32,7.96311452]
[1739372890246,0.063,192.38,192.32,7.96311452]
[1739372890895,46.24683357,192.37,192.32,7.96311452]
[1739372891051,0.063,192.38,192.32,7.96311452]
[1739372891052,46.24683357,192.35,192.32,7.96311452]
[1739372891386,46.24683357,192.33,192.26,46.24683357]
[1739372891551,46.24683357,192.32,192.26,46.24683357]
[1739372891751,46.24683357,192.36,192.29,46.24683357]
[1739372892286,46.24683357,192.37,192.3,46.24683357]
[1739372892467,46.24683357,192.36,192.29,46.24683357]
[1739372892651,46.24683357,192.34,192.28,51.44743357]
[1739372893359,46.24683357,192.36,192.29,46.24683357]
[1739372893650,46.24683357,192.37,192.3,46.24683357]
[1739372893973,0.063,192.38,192.33,46.24683357]
[1739372894183,46.24683357,192.37,192.3,46.24683357]
[1739372894491,46.24683357,192.35,192.28,46.24683357]
[1739372894859,46.24683357,192.36,192.29,46.24683357]
[1739372895184,46.24683357,192.36,192.3,46.24683357]
[1739372895358,46.24683357,192.34,192.27,51.44773357]
[1739372895959,46.76673357,192.34,192.27,51.44773357]
[1739372896158,46.76673357,192.34,192.25,108.16683357]
[1739372896159,46.24683357,192.31,192.25,108.16683357]
[1739372896353,46.24683357,192.31,192.25,61.92]
[1739372896660,46.24683357,192.3,192.25,61.92]
[1739372896995,46.24683357,192.27,192.25,61.92]
[1739372897361,46.24683357,192.26,192.25,61.92]
[1739372897685,0.12549,192.25,192.18,7.96311452]
[1739372897921,46.24683357,192.21,192.18,7.96311452]
[1739372898067,46.24683357,192.22,192.18,7.96311452]
[1739372898252,46.24683357,192.23,192.18,7.96311452]
[1739372898773,46.24683357,192.24,192.17,46.27683357]
[1739372899097,1.8204,192.26,192.18,0.03]
[1739372899098,46.24683357,192.19,192.18,0.03]
[1739372899396,46.37232357,192.19,192.18,0.03]
[1739372899573,46.89262357,192.19,192.18,0.03]
[1739372899886,47.01811357,192.19,192.18,0.03]
[1739372900090,46.76713357,192.19,192.18,0.03]
[1739372900262,48.29023357,192.21,192.18,0.03]
[1739372900460,47.77003357,192.21,192.18,0.03]
[1739372900657,46.76703357,192.23,192.18,0.03]
[1739372900853,46.24683357,192.23,192.18,0.03]
[1739372901084,0.5201,192.26,192.18,0.03]
[1739372901295,1.556,192.28,192.18,0.03]
[1739372901591,46.24683357,192.21,192.18,0.03]
[1739372901803,20.0,192.26,192.18,0.03]
[1739372901972,45.50358526,192.25,192.18,46.27683357]
[1739372902294,20.0,192.26,192.2,46.24683357]
[1739372902684,0.52,192.28,192.22,46.24683357]
[1739372902881,0.52,192.28,192.2,0.12549]
[1739372902882,46.24683357,192.31,192.24,46.24683357]
[1739372903385,46.76673357,192.32,192.25,46.24683357]
[1739372903576,46.24683357,192.31,192.24,46.24683357]
[1739372903777,20.25098,192.31,192.21,46.24683357]
[1739372904002,46.24683357,192.24,192.18,0.03]
[1739372904290,0.12549,192.24,192.18,0.03]
[1739372904804,0.12549,192.2,192.18,0.03]
[1739372904982,13.66282853,192.2,192.18,0.03]
[1739372905371,46.37232357,192.19,192.18,0.03]
[1739372905571,46.76713357,192.19,192.18,0.03]
[1739372905976,47.01811357,192.19,192.18,0.03]
[1739372906672,20.12549,192.15,192.14,0.0001]
[1739372906870,66.37232357,192.15,192.14,0.0001]
[1739372907100,46.37232357,192.15,192.14,0.0001]
[1739372907481,1.94649,192.19,192.14,0.0001]
[1739372907482,46.24683357,192.17,192.14,0.0001]
[1739372907680,0.5203,192.16,192.14,0.0001]
[1739372907990,46.24683357,192.15,192.14,0.0001]
[1739372908199,46.49781357,192.15,192.14,0.0001]
[1739372908402,60.0351521,192.15,192.14,0.0001]
[1739372909111,46.49781357,192.15,192.14,0.0001]
[1739372909273,46.62330357,192.15,192.14,0.0001]
[1739372909674,20.0,192.1,192.08,0.03]
[1739372909875,46.49781357,192.09,192.08,0.03]
[1739372910881,46.24683357,192.09,192.08,0.03]
[1739372911093,46.49781357,192.09,192.08,0.03]
[1739372911290,20.25098,192.06,192.05,0.03]
[1739372911615,66.49781357,192.06,192.05,0.03]
[1739372911776,67.01841357,192.06,192.05,0.03]
[1739372912187,0.5206,192.08,192.05,0.03]
[1739372912392,46.76743357,192.08,192.05,0.03]
[1739372912592,46.24683357,192.06,192.05,0.03]
[1739372912789,46.24683357,192.07,192.05,0.03]
[1739372913188,0.12549,192.1,192.05,0.03]
[1739372913189,46.76733357,192.1,192.05,0.03]
[1739372913892,46.24683357,192.08,192.05,0.03]
[1739372914104,46.24683357,192.1,192.05,0.03]
[1739372914310,46.24683357,192.12,192.05,46.27683357]
[1739372914612,46.24683357,192.14,192.07,46.24683357]
[1739372914789,54.05773357,192.2,192.06,1.09306091]
[1739372914790,46.76713357,192.16,192.09,46.24683357]
[1739372914993,46.24683357,192.17,192.1,47.33976223]
[1739372915217,46.76713357,192.2,192.13,46.24683357]
[1739372915516,46.24683357,192.21,192.14,46.24683357]
[1739372915816,46.24683357,192.21,192.1,14.75575719]
[1739372915817,46.76703357,192.22,192.15,46.24683357]
[1739372916108,46.24683357,192.24,192.17,46.24683357]
[1739372916410,46.24683357,192.25,192.18,46.24683357]
[1739372917182,46.24683357,192.25,192.14,6.29688655]
[1739372917183,46.24683357,192.22,192.15,46.24683357]
[1739372917387,46.24683357,192.2,192.14,5.2045]
[1739372917611,46.24683357,192.19,192.14,5.2045]
[1739372917785,46.24683357,192.2,192.13,46.24683357]
[1739372918311,46.24683357,192.21,192.14,46.24683357]
[1739372918619,46.24683357,192.2,192.13,46.24683357]
[1739372918811,46.24683357,192.2,192.12,5.2048]
[1739372918812,46.24683357,192.18,192.12,5.2048]
[1739372919016,0.25098,192.21,192.1,5.2053]
[1739372919399,46.24683357,192.16,192.09,51.45263357]
[1739372919594,46.24683357,192.19,192.12,46.24683357]
[1739372919788,46.76703357,192.2,192.13,46.24683357]
[1739372920307,46.76703357,192.2,192.09,46.24683357]
[1739372920308,46.24683357,192.15,192.09,46.24683357]
[1739372920513,46.24683357,192.11,192.05,51.48353357]
[1739372920883,46.24683357,192.1,192.05,0.03]
[1739372921192,20.0,192.16,192.05,5.2368]
[1739372921395,0.5204,192.13,192.06,46.24683357]
[1739372921711,46.24683357,192.09,192.05,0.03]
[1739372921924,46.24683357,192.08,192.05,0.03]
[1739372922588,0.25098,192.12,192.05,0.03]
[1739372922589,46.24683357,192.07,192.05,0.03]
[1739372922787,46.24683357,192.06,192.05,0.03]
[1739372923091,46.24683357,192.07,192.05,0.03]
[1739372923307,46.24683357,192.06,192.05,0.03]
[1739372923618,20.0,192.06,192.05,0.03]
[1739372923780,46.24683357,192.07,192.05,0.03]
[1739372923983,1.3012,192.13,192.05,0.03]
[1739372924297,46.76733357,192.12,192.05,0.03]
[1739372924501,20.0,192.09,192.05,0.03]
[1739372925098,46.24683357,192.09,192.05,0.03]
[1739372925421,46.76733357,192.09,192.05,0.03]
[1739372925711,46.24683357,192.06,192.05,0.03]
[1739372926094,46.24683357,192.08,192.05,0.03]
[1739372926288,46.24683357,192.12,192.05,46.27683357]
[1739372926487,46.24683357,192.13,192.06,46.24683357]
[1739372926707,0.5204,192.14,192.05,46.27683357]
[1739372926708,46.24683357,192.12,192.05,46.27683357]
[1739372926924,46.24683357,192.11,192.05,0.03]
[1739372927286,46.24683357,192.09,192.05,0.03]
[1739372927705,0.12549,192.09,192.05,0.03]
[1739372927915,46.24683357,192.06,192.05,0.03]
[1739372928515,46.37232357,192.06,192.05,0.03]
[1739372928696,46.49781357,192.06,192.05,0.03]
[1739372929023,46.62330357,192.06,192.05,0.03]
[1739372929321,0.37647,192.05,192.04,0.03]
[1739372929520,46.37232357,191.99,191.98,0.03]
[1739372930513,1.8222,192.06,191.98,46.27683357]
[1739372930716,1.8222,192.06,192.0,46.24683357]
[1739372930717,0.5206,192.06,192.0,46.24683357]
[1739372930924,0.5206,192.06,191.98,46.27683357]
[1739372930925,46.24683357,192.04,191.98,46.27683357]
[1739372931219,46.37232357,192.02,191.98,0.03]
[1739372931394,46.24683357,192.0,191.98,0.03]
[1739372931592,0.12549,192.0,191.98,0.03]
[1739372931814,46.24683357,191.99,191.98,0.03]
[1739372932409,46.37232357,191.99,191.98,0.03]
[1739372932713,46.49781357,191.99,191.98,0.03]
[1739372933218,46.24683357,191.99,191.98,0.03]
[1739372933740,46.49781357,191.99,191.98,0.03]
[1739372934122,46.24683357,191.99,191.98,0.03]
[1739372934625,46.49781357,191.99,191.98,0.03]
[1739372935217,46.24683357,192.0,191.98,0.03]
[1739372935637,0.5207,192.02,191.98,0.03]
[1739372935638,46.24683357,191.99,191.98,0.03]
[1739372935939,46.37232357,191.99,191.98,0.03]
[1739372936315,20.0,191.99,191.98,0.03]
[1739372936517,0.5206,192.07,191.98,0.03]
[1739372936734,46.24683357,192.05,191.98,46.27683357]
[1739372937445,46.24683357,192.05,191.98,51.48543357]
[1739372937641,0.063,192.08,192.02,46.24683357]
[1739372937965,0.18849,192.08,192.02,46.24683357]
[1739372938543,0.063,192.08,192.03,46.24683357]
[1739372938722,0.063,192.08,192.04,46.24683357]
[1739372938924,46.30983357,192.08,192.01,46.24683357]
[1739372939125,46.24683357,192.06,191.99,46.24683357]
[1739372939536,46.24683357,192.06,192.0,5.2083]
[1739372940128,0.063,192.08,192.02,46.24683357]
[1739372940330,0.063,192.08,192.04,46.24683357]
[1739372940528,46.24683357,192.06,192.0,18.2291]
[1739372940732,46.24683357,192.07,192.01,46.24683357]
[1739372941130,46.30983357,192.08,192.01,46.24683357]
[1739372941331,0.063,192.08,192.04,46.24683357]
[1739372941534,0.063,192.08,192.07,46.24683357]
[1739372942236,0.063,192.08,192.07,60.75163307]
[1739372943163,0.063,192.18,192.11,20.0]
[1739372943457,46.24683357,192.17,192.13,5.2048]
[1739372943634,0.063,192.18,192.09,5.2058]
[1739372944040,0.063,192.18,192.13,13.41184853]
[1739372944349,0.063,192.18,192.16,20.0]
[1739372944531,0.063,192.18,192.17,1.09237383]
[1739372944967,0.063,192.18,192.17,15.75520236]
[1739372945139,0.063,192.28,192.22,20.0]
[1739372945454,0.063,192.28,192.25,46.24683357]
[1739372945663,0.063,192.28,192.26,46.24683357]
[1739372945834,0.063,192.28,192.25,46.24683357]
[1739372946033,0.063,192.28,192.23,52.54076172]
[1739372946246,0.063,192.28,192.24,46.24683357]
[1739372946741,0.063,192.28,192.23,46.24683357]
[1739372946940,0.25098,192.27,192.15,1.09214883]
[1739372947270,0.12549,192.23,192.13,5.2047]
[1739372947471,0.5202,192.22,192.11,5.2052]
[1739372947679,0.25098,192.21,192.08,1.0926727]
[1739372947846,0.25098,192.21,192.1,20.0]
[1739372948169,46.24683357,192.14,192.07,58.05703357]
[1739372948349,46.24683357,192.15,192.08,46.24683357]
[1739372948554,46.24683357,192.16,192.08,47.33975993]
[1739372948873,46.24683357,192.18,192.11,46.24683357]
[1739372949064,46.76703357,192.22,192.15,46.24683357]
[1739372949387,47.78723357,192.23,192.16,46.24683357]
[1739372949547,46.24683357,192.22,192.15,46.24683357]
[1739372949747,46.24683357,192.22,192.1,47.49781357]
[1739372949748,46.24683357,192.17,192.1,5.2053]
[1739372950070,0.12549,192.21,192.08,1.09278409]
[1739372950371,0.12549,192.21,192.0,54.20994809]
[1739372950372,0.25098,192.17,192.01,1.09298967]
[1739372950678,0.25098,192.17,192.05,20.0]
[1739372950838,46.24683357,192.11,192.05,20.0]
[1739372951043,46.24683357,192.08,192.01,46.24683357]
[1739372951238,46.24683357,192.08,192.01,47.34023765]
[1739372951442,46.24683357,192.1,192.03,46.24683357]
[1739372951670,0.12549,192.13,192.03,46.24683357]
[1739372951671,46.24683357,192.09,192.03,46.24683357]
[1739372952173,46.24683357,192.09,192.02,46.24683357]
[1739372952349,46.24683357,192.1,192.03,46.24683357]
[1739372952545,46.24683357,192.13,192.06,46.24683357]
[1739372952776,46.24683357,192.14,192.07,46.24683357]
[1739372952945,46.24683357,192.11,192.04,46.24683357]
[1739372953269,0.64589,192.15,192.0,46.24683357]
[1739372953270,46.24683357,192.06,192.0,46.24683357]
[1739372953572,0.25098,192.12,191.99,6.30150752]
[1739372953866,46.24683357,192.05,191.98,46.27683357]
[1739372954071,0.12549,192.08,191.98,0.03]
[1739372954072,46.24683357,192.02,191.98,0.03]
[1739372954242,46.24683357,192.01,191.98,0.03]
[1739372954651,46.24683357,192.03,191.98,0.03]
[1739372954871,46.24683357,192.04,191.98,46.27683357]
[1739372955052,46.24683357,192.02,191.98,0.03]
[1739372955256,46.24683357,192.01,191.98,0.03]
[1739372955459,46.37232357,192.03,191.98,0.03]
[1739372955972,0.12549,192.06,191.99,46.24683357]
[1739372955973,46.76743357,192.06,191.99,46.24683357]
[1739372956160,46.24683357,192.02,191.98,0.03]
[1739372956360,46.24683357,192.01,191.98,0.03]
[1739372956775,0.12549,192.05,191.98,0.03]
[1739372956776,46.24683357,192.0,191.98,0.03]
[1739372957353,46.24683357,191.99,191.98,0.03]
[1739372957677,46.24683357,192.03,191.98,0.03]
[1739372957873,46.24683357,192.02,191.98,0.03]
[1739372958373,46.24683357,192.01,191.98,0.03]
[1739372958561,46.24683357,192.02,191.98,0.03]
[1739372959151,46.24683357,192.03,191.98,0.03]
[1739372959347,46.24683357,192.05,191.98,46.27683357]
[1739372959577,46.24683357,192.11,192.04,46.24683357]
[1739372959873,1.3009,192.17,192.05,20.0]
[1739372960073,0.5203,192.18,192.06,1.09313656]
[1739372960247,0.5833,192.18,192.06,1.09295653]
[1739372960444,46.24683357,192.17,192.1,46.24683357]
[1739372960650,0.063,192.18,192.13,46.24683357]
[1739372961462,0.063,192.18,192.17,46.24683357]
[1739372962872,0.063,192.18,192.17,51.45053357]
[1739372963785,0.063,192.18,192.15,46.24683357]
[1739372964075,46.30983357,192.18,192.11,46.24683357]
[1739372964752,0.063,192.18,192.12,46.24683357]
[1739372965153,0.063,192.18,192.09,5.2057]
[1739372965154,0.063,192.18,192.14,46.24683357]
[1739372965453,0.063,192.18,192.12,66.24683357]
[1739372965680,46.24683357,192.17,192.1,46.24683357]
[1739372966151,0.18849,192.18,192.12,46.24683357]
[1739372966347,0.18849,192.18,192.09,5.2058]
[1739372966348,0.063,192.18,192.13,46.24683357]
[1739372966553,0.063,192.18,192.12,46.24683357]
[1739372966854,46.24683357,192.17,192.1,46.24683357]
[1739372967057,46.83013357,192.18,192.11,46.24683357]
[1739372967294,0.063,192.18,192.13,46.24683357]
[1739372967458,0.063,192.18,192.14,46.24683357]
[1739372967775,0.063,192.18,192.11,46.24683357]
[1739372967776,46.30983357,192.18,192.11,46.24683357]
[1739372968358,46.24683357,192.17,192.1,46.24683357]
[1739372968863,46.24683357,192.13,192.06,46.24683357]
[1739372969186,46.24683357,192.13,192.07,5.2064]
[1739372969385,46.24683357,192.12,192.05,51.45353357]
[1739372969588,46.24683357,192.1,192.03,51.45403357]
[1739372969799,46.24683357,192.1,192.04,46.24683357]
[1739372969991,46.24683357,192.1,192.03,51.45403357]
[1739372970688,46.76733357,192.1,192.03,51.45403357]
[1739372970859,0.5205,192.1,192.05,46.24683357]
[1739372971065,0.5205,192.1,192.04,46.24683357]
[1739372971367,46.76733357,192.1,192.03,51.45403357]
[1739372971593,0.5205,192.1,192.05,46.24683357]
[1739372971762,66.24683357,192.13,192.06,46.24683357]
[1739372971962,2.8559,192.15,192.05,13.41184853]
[1739372971963,1.5549,192.15,192.05,13.41184853]
[1739372972268,0.5833,192.18,192.12,46.24683357]
[1739372972468,0.063,192.18,192.13,46.24683357]
[1739372972678,0.063,192.18,192.15,46.24683357]
[1739372972882,0.063,192.18,192.17,46.24683357]
[1739372973473,0.063,192.18,192.17,59.9096621]
[1739372973789,0.063,192.18,192.17,66.20559899]
[1739372974566,0.063,192.18,192.17,51.45053357]
[1739372975186,0.063,192.18,192.17,65.1133621]
[1739372975376,0.063,192.18,192.17,66.20553734]
[1739372976067,0.063,192.18,192.17,51.45053357]
[1739372976270,0.063,192.18,192.15,46.24683357]
[1739372976468,0.063,192.18,192.12,51.45183357]
[1739372976688,0.063,192.18,192.1,13.0138]
[1739372976689,46.30983357,192.18,192.11,47.3396074]
[1739372976897,0.063,192.18,192.12,46.24683357]
[1739372977190,0.063,192.18,192.1,6.29803072]
[1739372977191,0.063,192.18,192.13,46.24683357]
[1739372977393,0.063,192.18,192.15,46.24683357]
[1739372977566,0.063,192.18,192.17,46.24683357]
[1739372978592,0.063,192.18,192.17,52.54294583]
[1739372978996,0.063,192.18,192.17,51.45053357]
[1739372979996,0.063,192.18,192.16,46.24683357]
[1739372980390,0.063,192.18,192.15,46.24683357]
[1739372980585,0.063,192.18,192.13,5.2046]
[1739372980786,0.063,192.18,192.13,51.45143357]
[1739372981083,0.063,192.18,192.14,46.24683357]
[1739372981477,0.063,192.18,192.12,46.24683357]
[1739372982006,0.5833,192.18,192.12,46.24683357]
[1739372982168,0.063,192.18,192.14,46.24683357]
[1739372982367,0.063,192.18,192.15,46.24683357]
[1739372982568,0.063,192.18,192.12,46.24683357]
[1739372983018,46.24683357,192.16,192.09,46.24683357]
[1739372983201,46.30983357,192.18,192.11,46.24683357]
[1739372983405,46.30983357,192.18,192.13,46.24683357]
[1739372983406,0.063,192.18,192.13,46.24683357]
[1739372983900,0.063,192.18,192.14,46.24683357]
[1739372984072,0.063,192.18,192.15,46.24683357]
[1739372984283,0.063,192.18,192.17,46.24683357]
[1739372984615,0.063,192.18,192.15,46.24683357]
[1739372984997,0.063,192.18,192.17,46.24683357]
[1739372985405,0.063,192.18,192.13,6.32735903]
[1739372985406,0.063,192.18,192.16,46.24683357]
[1739372985592,0.063,192.18,192.14,46.24683357]
[1739372986009,0.063,192.18,192.13,51.48153357]
[1739372986295,46.30983357,192.18,192.13,0.03]
[1739372986818,46.24683357,192.17,192.13,0.03]
[1739372987211,0.063,192.18,192.13,0.03]
[1739372987512,46.24683357,192.17,192.13,0.03]
[1739372987689,46.24683357,192.16,192.13,0.03]
[1739372988086,46.24683357,192.14,192.13,0.03]
[1739372988602,46.24683357,192.15,192.13,0.03]
[1739372989112,0.5204,192.16,192.13,0.03]
[1739372989113,46.24683357,192.16,192.13,0.03]
[1739372989327,46.76713357,192.17,192.13,0.03]
[1739372989823,46.24683357,192.15,192.13,0.03]
[1739372990120,0.063,192.18,192.13,0.03]
[1739372990315,46.76713357,192.17,192.13,0.03]
[1739372990616,46.24683357,192.16,192.13,0.03]
[1739372990789,46.76713357,192.17,192.13,0.03]
[1739372991612,46.37232357,192.14,192.13,0.03]
[1739372992087,46.24683357,192.15,192.13,0.03]
[1739372992285,21.8212,192.17,192.13,0.03]
[1739372992286,46.24683357,192.14,192.13,0.03]
[1739372992489,48.26000357,192.14,192.13,0.03]
[1739372992708,0.25098,192.13,192.02,46.24683357]
[1739372992913,46.24683357,192.1,192.03,46.24683357]
[1739372993108,46.24683357,192.1,192.0,51.45513357]
[1739372993109,46.24683357,192.06,192.0,51.45513357]
[1739372993291,46.24683357,192.06,191.99,72.63809521]
[1739372993810,0.5206,192.06,192.0,46.24683357]
[1739372994212,0.5206,192.06,192.01,46.24683357]
[1739372995620,46.24683357,192.08,192.01,46.24683357]
[1739372996392,0.5205,192.09,192.03,46.24683357]
[1739372996587,46.76733357,192.12,192.05,46.24683357]
[1739372996816,0.5205,192.12,192.06,46.24683357]
[1739372997129,0.5205,192.12,191.98,62.95]
[1739372997130,46.24683357,192.07,191.98,0.03]
[1739372997423,20.0,192.04,191.98,0.03]
[1739372997800,0.5207,192.04,191.98,0.03]
[1739372998423,46.24683357,192.03,191.98,0.03]
[1739372998804,46.76753357,192.03,191.98,0.03]
[1739372999404,46.24683357,192.04,191.98,0.03]
[1739372999718,0.5206,192.06,191.99,46.24683357]
[1739372999917,20.0,192.07,192.01,46.24683357]
[1739373000094,0.5206,192.07,192.01,46.24683357]
[1739373000419,46.76743357,192.09,192.02,46.24683357]
[1739373000622,0.5204,192.13,192.04,20.0]
[1739373000828,0.5204,192.13,192.08,46.24683357]
[1739373001119,7.7968,192.14,192.04,20.0]
[1739373001120,2.1571,192.14,192.04,20.0]
[1739373001326,3.4582,192.14,192.01,21.09329257]
[1739373001525,2.1571,192.14,192.03,20.0]
[1739373001826,2.1571,192.14,192.03,21.09310681]
[1739373002018,0.5204,192.16,192.08,13.53733853]
[1739373002325,0.063,192.17,192.08,13.53733853]
[1739373002326,0.063,192.17,192.13,46.24683357]
[1739373002495,46.24683357,192.15,192.08,46.24683357]
[1739373002692,46.24683357,192.13,192.06,46.24683357]
[1739373002926,46.24683357,192.12,192.05,46.24683357]
[1739373003222,0.25098,192.14,192.03,20.0]
[1739373003428,0.12549,192.14,192.02,5.2077]
[1739373003601,46.24683357,192.1,192.03,46.24683357]
[1739373003802,46.24683357,192.11,192.04,46.24683357]
[1739373004202,0.5205,192.11,192.05,46.24683357]
[1739373004415,46.24683357,192.14,192.07,46.24683357]
[1739373004725,1.301,192.15,192.04,5.2071]
[1739373004726,46.24683357,192.12,192.05,46.24683357]
[1739373005228,46.24683357,192.08,192.01,46.24683357]
[1739373005428,46.24683357,192.06,191.98,108.21683357]
[1739373005596,46.24683357,192.05,191.98,108.21683357]
[1739373005802,46.24683357,192.04,191.98,61.97]
[1739373006419,46.24683357,192.02,191.98,61.97]
[1739373006629,46.24683357,191.99,191.98,0.03]
[1739373007028,46.13683357,191.99,191.98,0.03]
[1739373007404,46.26232357,191.99,191.98,0.03]
[1739373007637,46.13683357,191.99,191.98,0.03]
[1739373008135,46.38781357,191.99,191.98,0.03]
[1739373008311,66.76763357,191.98,191.97,0.03]
[1739373009608,66.89312357,191.98,191.97,0.03]
[1739373010606,46.89312357,191.98,191.97,0.03]
[1739373010941,0.12549,192.02,191.97,0.03]
[1739373010942,46.24683357,192.02,191.97,0.03]
[1739373011108,46.24683357,192.04,191.97,46.27683357]
[1739373011308,46.24683357,192.0,191.97,0.03]
[1739373011514,46.24683357,191.99,191.97,0.03]
[1739373011702,20.0,192.04,191.97,0.03]
[1739373011905,0.12549,191.99,191.97,0.03]
[1739373012731,28.70737932,191.98,191.97,0.03]
[1739373013239,29.35366932,191.98,191.97,0.03]
[1739373013411,29.22817932,191.98,191.97,0.03]
[1739373013606,29.35366932,191.98,191.97,0.03]
[1739373015237,40.25461853,191.95,191.94,0.03]
[1739373015427,55.55014932,191.95,191.94,0.03]
[1739373015614,55.29916932,191.95,191.94,0.03]
[1739373016117,48.83286932,191.95,191.94,0.03]
[1739373016318,49.47925932,191.95,191.94,0.03]
[1739373016539,0.50196,191.92,191.87,0.03]
[1739373016853,48.70737932,191.88,191.87,0.03]
[1739373017637,28.70737932,191.88,191.87,0.03]
[1739373017940,28.70737932,191.89,191.87,0.03]
[1739373018141,28.83286932,191.88,191.87,0.03]
[1739373018438,29.47945932,191.88,191.87,0.03]
[1739373019019,29.60494932,191.88,191.87,0.03]
[1739373020039,29.60494932,191.88,191.77,0.11]
[1739373020040,20.12549,191.84,191.77,0.11]
[1739373020340,28.70737932,191.81,191.77,0.11]
[1739373021239,28.70737932,191.8,191.77,0.11]
[1739373021411,0.5212,191.83,191.77,0.11]
[1739373021412,28.83286932,191.78,191.77,0.11]
[1739373021617,28.70737932,191.78,191.77,0.11]
[1739373021849,28.83286932,191.8,191.77,0.11]
[1739373022252,28.70737932,191.79,191.77,0.11]
[1739373022436,28.83286932,191.78,191.77,0.11]
[1739373022643,29.08384932,191.78,191.77,0.11]
[1739373022944,0.12549,191.74,191.64,90.66737932]
[1739373023249,0.12549,191.75,191.64,90.66737932]
[1739373023250,28.83286932,191.69,191.64,61.96]
[1739373023436,28.70737932,191.67,191.64,61.96]
[1739373023633,28.70737932,191.68,191.64,61.96]
[1739373023837,30.25927932,191.71,191.64,90.66737932]
[1739373024334,28.70737932,191.69,191.64,61.96]
[1739373024645,28.83286932,191.68,191.64,61.96]
[1739373024954,28.70737932,191.68,191.64,61.96]
[1739373025157,28.70737932,191.67,191.64,61.96]
[1739373025864,28.70737932,191.69,191.64,61.96]
[1739373026036,1.5519,191.71,191.65,28.70737932]
[1739373026236,28.70737932,191.75,191.68,28.70737932]
[1739373026437,28.70737932,191.73,191.66,28.70737932]
[1739373027061,28.70737932,191.74,191.67,28.70737932]
[1739373027263,0.12549,191.78,191.67,28.70737932]
[1739373027264,28.70737932,191.78,191.71,28.70737932]
[1739373027461,28.70737932,191.81,191.74,28.70737932]
[1739373027660,6.5507,191.86,191.73,0.12549]
[1739373027846,12.4024994,191.88,191.73,1.22033806]
[1739373028047,28.70737932,191.85,191.78,28.70737932]
[1739373028933,28.70737932,191.85,191.78,33.92167932]
[1739373029134,28.70737932,191.87,191.8,28.70737932]
[1739373029357,28.70737932,191.9,191.84,28.70737932]
[1739373029561,28.70737932,191.89,191.82,28.70737932]
[1739373029769,0.12549,191.89,191.78,33.92167932]
[1739373029942,28.70737932,191.82,191.76,28.70737932]
[1739373030145,28.70737932,191.81,191.74,28.70737932]
[1739373030347,0.12549,191.83,191.72,5.2159]
[1739373030550,20.12549,191.8,191.7,5.2162]
[1739373030781,28.70737932,191.76,191.7,5.2162]
[1739373030957,28.70737932,191.77,191.7,33.92357932]
[1739373031148,48.70737932,191.8,191.73,28.70737932]
[1739373031347,28.70737932,191.78,191.71,28.70737932]
[1739373031572,28.70737932,191.76,191.7,5.2162]
[1739373031757,28.70737932,191.76,191.69,28.70737932]
[1739373031956,28.70737932,191.75,191.68,33.92417932]
[1739373032388,1.5955,191.79,191.68,6.31210955]
[1739373032545,1.5955,191.79,191.68,5.2168]